Cogmind - Beta 10.2 @@@ ROGUE MODE // 2021.07.05 @ 07:37:59 // Winter2019/RPGLIKE Player: ExAliquo Result: Destroyed by P-60 Hacker with Shock Rifle Performance ------------- Evolutions (1) 500 Regions Visited (5) 1000 Robots Destroyed (108) 540 Value Destroyed (3082) 3082 Prototype IDs (33) 660 Alien Tech Used (0) 0 Bonus (-167) -167 TOTAL SCORE: 5615 Bonus ------- High Alert Combat Kills 91 Aligned with FarCom 300 Friendly Fire -558 Cogmind --------- Core Integrity 0/800 Matter 290/300 Energy 160/160 System Corruption 3% Temperature Cool (0) Movement Rolling (90) Ox1 Location -9/Exiles Parts ------- > --- POWER (1) -------- Light Nuclear Core > --- PROPULSION (2) --- Wheel Wheel > --- UTILITY (5) ------ Advanced Signal Interpreter Particle Charger Weapon Cycler Powered Armor Trap Reconfigurator > --- WEAPON (4) ------- Heavy EM Pulse Gun Heavy EM Pulse Gun Improved EM Shotgun > --- INVENTORY (2) ---- Protomatter-31 Heavy EM Pulse Gun Peak State ------------ > --- POWER ------------ Light Nuclear Core > --- PROPULSION ------- Wheel Wheel > --- UTILITY ---------- Advanced Signal Interpreter Particle Charger Weapon Cycler Powered Armor Trap Reconfigurator > --- WEAPON ----------- Heavy EM Pulse Gun Improved EM Shotgun AWS/Thermal > --- INVENTORY -------- Heavy EM Pulse Gun Heavy EM Pulse Gun [Rating: 49] Favorites ----------- Power Light Ion Engine Engine Light Ion Engine Power Core Light Nuclear Core Propulsion Wheel Wheel Wheel Utility Advanced Signal Interpreter Device Particle Charger Processor Advanced Signal Interpreter Protection Powered Armor Weapon Heavy EM Pulse Gun Energy Gun Heavy EM Pulse Gun Ballistic Cannon Light Cannon Launcher Grenade Launcher Build | -11 -10 -10 -9 -9 -9 ------- Run | Scr Mat Min Mat Min Exi Slots Evolved 8 | 4 1 . 2 1 . Power . | . . . . . . Propulsion 1 | 1 . . . . . Utility 4 | 1 . . 2 1 . Weapon 3 | 2 1 . . . . Parts Attached 31 | 4 9 1 9 4 4 Power 1 | . . . 1 . . Engine . | . . . . . . Core 1 | . . . 1 . . Reactor . | . . . . . . Propulsion 4 | 2 2 . . . . Treads . | . . . . . . Leg . | . . . . . . Wheel 4 | 2 2 . . . . Hover . | . . . . . . Flight . | . . . . . . Utility 12 | 2 . 1 4 4 1 Device 6 | 1 . 1 1 2 1 Storage . | . . . . . . Processor 4 | 1 . . 3 . . Hackware . | . . . . . . Protection 2 | . . . . 2 . Artifact . | . . . . . . Weapon 14 | . 7 . 4 . 3 Energy Gun 12 | . 5 . 4 . 3 Energy Cannon . | . . . . . . Ballistic Gun . | . . . . . . Ballistic Cannon 1 | . 1 . . . . Launcher 1 | . 1 . . . . Special Weapon . | . . . . . . Impact Weapon . | . . . . . . Slashing Weapon . | . . . . . . Piercing Weapon . | . . . . . . Special Melee Weapon . | . . . . . . Unidentified Prototypes 2 | . . 1 1 . . Parts Lost . | . . . . . . Power . | . . . . . . Propulsion . | . . . . . . Utility . | . . . . . . Weapon . | . . . . . . Highest Loss Streak . | . . . . . . Average Slot Usage (%) 94 | . 92 91 92 98 97 Engine 6 | . 11 11 6 . . Core 3 | . . . 4 8 8 Wheel 20 | . 23 22 20 16 16 Device 14 | . 11 10 10 21 25 Processor 8 | . 11 3 10 9 8 Protection 2 | . . . . 7 8 Energy Gun 36 | . 26 44 40 33 30 Naked Turns . | . . . . . . Heaviest Build 34 | 6 16 23 23 32 34 Greatest Support 20 | 20 20 20 20 20 20 Greatest Overweight (x) 1 | . . 1 1 1 1 Average Overweight (x) . | . . . . . 1 Largest Inventory Capacity 2 | . 1 1 2 2 2 Average Capacity 1 | . . 1 1 2 2 Most Carried 2 | . 1 1 2 2 2 Average Carried 1 | . . 1 1 2 1 Final Capacity 2 | . 1 1 2 2 2 Final Carried 2 | . 1 1 2 2 2 Class Distribution -------------------- 58% | Gunner 32% | Scavenger-Skirmisher 4% | Mutant 4% | Scavenger-Mutant Dominant Class ---------------- Scavenger-Skirmisher | -10/Materials Gunner | -10/Mines Gunner | -9/Materials Scavenger-Skirmisher | -9/Mines Gunner | -9/Exiles Resources | -11 -10 -10 -9 -9 -9 ----------- Run | Scr Mat Min Mat Min Exi Matter Collected 540 | 222 150 10 88 40 30 Remotely . | . . . . . . Salvage Created 3947 | 113 912 192 1310 713 707 Parts 237 | 6 61 3 97 38 32 Haulers Intercepted 5 | . 1 . 4 . . Recyclers Shooed . | . . . . . . Parts Field Recycled . | . . . . . . Retrieved Matter . | . . . . . . Parts Self-Destructed . | . . . . . . Prevented . | . . . . . . Kills | -11 -10 -10 -9 -9 -9 ------- Run | Scr Mat Min Mat Min Exi Combat Hostiles Destroyed 85 | . 22 3 34 12 14 Guns 73 | . 17 2 32 10 12 AOE 12 | . 5 1 2 2 2 Classes Destroyed 14 | 2 5 2 1 2 2 Worker 3 | . . . 3 . . Builder 4 | . 2 . 1 1 . Tunneler 3 | 1 . . . 2 . Hauler 5 | . 1 . 4 . . Recycler 1 | 1 . . . . . Watcher 5 | . 3 . 2 . . Swarmer 11 | . 3 . 8 . . Grunt 60 | . 19 1 21 10 9 Brawler 2 | . . . . . 2 Duelist 2 | . . . . 1 1 Protector 1 | . . . . 1 . Sentry 6 | . . 1 5 . . Demolisher 1 | . . 1 . . . Hunter 2 | . . . . . 2 Thug 2 | . . . . 2 . Best Kill Streak 9 | 2 8 2 9 6 9 Combat Bots Only 9 | . 4 2 8 5 9 Max Kills in Single Turn 3 | 1 3 1 2 3 2 Gunslinging 1 | . . . 1 1 . Exploded 2 | . 2 1 1 1 2 Melee . | . . . . . . Uniques/NPCs Destroyed . | . . . . . . Combat | -11 -10 -10 -9 -9 -9 -------- Run | Scr Mat Min Mat Min Exi Damage Taken 3051 | . 617 176 599 271 1388 Core 2232 | . 496 142 477 191 926 Absorbed by Shields . | . . . . . . Redirected to Core 1873 | . 398 122 378 187 788 Core Remaining (%) 95 | 100 . 91 . . . Volleys Fired 151 | 2 52 4 56 21 16 Largest 4 | 1 4 4 4 4 3 Hottest 191 | 40 180 180 191 180 135 Shots Fired 533 | 2 121 16 216 77 101 Gun 520 | 2 108 16 216 77 101 Cannon 13 | . 13 . . . . Launcher . | . . . . . . Special . | . . . . . . Kinetic 13 | . 13 . . . . Thermal 104 | . 11 . 25 . 68 Explosive . | . . . . . . Electromagnetic 416 | 2 97 16 191 77 33 Robot Hit Streak 81 | 2 8 11 13 19 81 Robot Miss Streak 9 | . 9 1 2 3 1 Penetration Max . | . . . . . . Secondary Targets 13 | . 1 1 8 3 . Max Gunslinging Chain 1 | . 1 1 1 1 . Autonomous 69 | . . . . . 69 Shots Hit Robots 369 | 2 68 15 130 55 99 Core Hits 151 | 2 33 8 56 26 26 Critical Hits 1 | . . . . . 1 Critical Kills . | . . . . . . Critical Parts Destroyed . | . . . . . . Melee Attacks . | . . . . . . Impact . | . . . . . . Slashing . | . . . . . . Piercing . | . . . . . . Sneak Attacks . | . . . . . . Combat Hostiles . | . . . . . . Follow-up Attacks . | . . . . . . Damage Inflicted 6721 | 27 1677 266 2269 1248 1234 Guns 5254 | 27 1046 206 2047 903 1025 Cannons 38 | . 38 . . . . Explosions 1384 | . 572 57 201 345 209 Melee . | . . . . . . Ramming 45 | . 21 3 21 . . Kinetic 38 | . 38 . . . . Thermal 2392 | . 635 57 273 345 1082 Explosive . | . . . . . . Electromagnetic 4246 | 27 983 206 1975 903 152 Impact . | . . . . . . Slashing . | . . . . . . Piercing . | . . . . . . Highest Corruption 2 | . . . 2 2 2 Average Corruption 1 | . . . 1 2 2 Corruption Purged . | . . . . . . Effects 21 | . . . 10 7 4 Message Errors 5 | . . . 2 1 2 Heat Flow Errors 4 | . . . 2 1 1 Energy Discharges 4 | . . . 2 1 1 Data Loss (minor) 2 | . . . . 2 . Targeting Errors 6 | . . . 4 2 . Overload Shots . | . . . . . . Overflow Damage 122 | . 103 . 6 13 . Projectiles . | . . . . . . Explosions 116 | . 103 . . 13 . Melee 6 | . . . 6 . . Knockbacks . | . . . . . . Impact . | . . . . . . Kinetic . | . . . . . . Secondary . | . . . . . . Self-Inflicted Damage 318 | . 108 1 25 184 . Shots 8 | . 2 . 1 5 . Rammed 5 | . 3 1 1 . . Targets Rammed 5 | . 3 1 1 . . Kicked . | . . . . . . Crushed . | . . . . . . Highest Temperature 503 | . 58 58 237 503 230 Average Temperature 67 | . 23 28 61 141 29 Received Heat Transfer 588 | . 219 21 192 60 96 Effects 2 | . . . 1 1 . Energy Bleed 1 | . . . . 1 . Interference 1 | . . . 1 . . Siege Activations . | . . . . . . Robots Corrupted . | . . . . . . Combat Hostiles . | . . . . . . Parts Fried 25 | . 7 2 13 3 . Impact Corruptions 1 | . . . 1 . . Robots Melted . | . . . . . . Combat Hostiles . | . . . . . . Parts Melted 2 | . 2 . . . . Heat Transferred 3199 | . 685 100 546 276 1592 Parts Sabotaged . | . . . . . . Parts Stolen . | . . . . . . Parts Stripped . | . . . . . . Power Chain Reactions 14 | . 3 1 3 5 2 Missiles Intercepted . | . . . . . . Alert | -11 -10 -10 -9 -9 -9 ------- Run | Scr Mat Min Mat Min Exi Peak Influence 636 | 10 636 287 360 335 . Initial 247 | . 6 247 51 140 . Average 226 | 6 350 221 147 238 . Maximum Alert Level 2 | . 2 1 1 1 . Low Security (%) 39 | 100 13 30 70 17 . Level 1 52 | . 53 69 29 82 . Level 2 7 | . 32 . . . . Level 3 . | . . . . . . Level 4 . | . . . . . . Level 5 . | . . . . . . High Security . | . . . . . . Max Security . | . . . . . . Squads Dispatched 19 | . 7 . 10 2 . Investigation 16 | . 6 . 9 1 . Extermination . | . . . . . . Reinforcement 2 | . 1 . 1 . . Assault 1 | . . . . 1 . Garrison . | . . . . . . Intercept . | . . . . . . Construction Impeded . | . . . . . . Haulers Reinforced . | . . . . . . Stealth | -11 -10 -10 -9 -9 -9 --------- Run | Scr Mat Min Mat Min Exi Distress Signals 5 | . 4 . 1 . . Communications Jammed . | . . . . . . Distress Signals . | . . . . . . Times Spotted 111 | . 30 7 36 12 26 Peak Tracking Total 9 | . 4 2 4 5 9 Tactical Retreats 4 | . . 3 . . 1 Traps | -11 -10 -10 -9 -9 -9 ------- Run | Scr Mat Min Mat Min Exi Traps Triggered 2 | . 2 . . . . Indirectly . | . . . . . . Trap Hack Attempts . | . . . . . . Triggered . | . . . . . . Disarmed . | . . . . . . Reprogrammed . | . . . . . . Reused . | . . . . . . Traps Extracted . | . . . . . . Installed . | . . . . . . Triggered . | . . . . . . Exploded 1 | . . . . . 1 Machines | -11 -10 -10 -9 -9 -9 ---------- Run | Scr Mat Min Mat Min Exi Machines Disabled 13 | . 8 . 2 . 3 Max in Single Turn 6 | . 6 . 1 . 1 Machines Sabotaged . | . . . . . . Garrisons Compromised . | . . . . . . Overloaded Fab Kills . | . . . . . . Fab Network Shutdowns . | . . . . . . Hacking | -11 -10 -10 -9 -9 -9 --------- Run | Scr Mat Min Mat Min Exi Machines Accessed 25 | . 9 1 12 1 2 Terminals 15 | . 7 . 8 . . Fabricators . | . . . . . . Repair Stations . | . . . . . . Recycling Units 4 | . 2 . 2 . . Scanalyzers 2 | . . . 2 . . Garrison Access . | . . . . . . Total Hacks 71 | . 26 1 41 1 2 Successful 35 | . 8 1 23 1 2 Failed 35 | . 18 . 17 . . Catastrophic 1 | . . . 1 . . Database Lockouts 1 | . . . 1 . . Manual 60 | . 20 . 39 . 1 Terminals 61 | . 24 . 37 . . Fabricators . | . . . . . . Repair Stations . | . . . . . . Recycling Units 4 | . 2 . 2 . . Scanalyzers 2 | . . . 2 . . Garrison Access . | . . . . . . Terminal Hacks 23 | . 4 1 15 1 2 Record 1 | . . . . . 1 Robot Analysis 4 | . 2 . 2 . . Prototype ID Bank 8 | . 1 . 7 . . Open Door 2 | . . 1 . 1 . Branch Access Points 1 | . . . 1 . . Alert Level 1 | . . . 1 . . Unreport Threat 4 | . . . 4 . . Hauler Manifests 1 | . 1 . . . . EX-Prototype ID Bank 1 | . . . . . 1 Fabricator Hacks . | . . . . . . Repair Station Hacks . | . . . . . . Recycling Unit Hacks 1 | . . . 1 . . Retrieve Components 1 | . . . 1 . . Scanalyzer . | . . . . . . Garrison Access Hacks . | . . . . . . Unauthorized Hacks 11 | . 4 . 7 . . Terminals 6 | . 2 . 4 . . Botnet 4 | . 1 . 3 . . Operators 2 | . 1 . 1 . . Fabricators . | . . . . . . Repair Stations . | . . . . . . Recycling Units 3 | . 2 . 1 . . Tunnel 3 | . 2 . 1 . . Scanalyzers 2 | . . . 2 . . Extract 2 | . . . 2 . . Garrison Access . | . . . . . . Data Cores Recovered . | . . . . . . Used . | . . . . . . Hacking Detections 16 | . 7 . 9 . . Full Trace Events 15 | . 7 . 8 . . Feedback Events 2 | . . . 2 . . Corruption 2 | . . . 2 . . Feedback Blocked . | . . . . . . Robot Schematics Acquired . | . . . . . . Robots Built . | . . . . . . Matter . | . . . . . . Time . | . . . . . . Total Robot Build Rating . | . . . . . . Part Schematics Acquired 6 | . . . 6 . . Parts Built . | . . . . . . Matter . | . . . . . . Time . | . . . . . . Total Part Build Rating . | . . . . . . Parts Repaired . | . . . . . . Time . | . . . . . . Parts Recycled . | . . . . . . Recycled Matter . | . . . . . . Retrieved Matter . | . . . . . . Retrieved Components 4 | . . . 4 . . Parts Scanalyzed . | . . . . . . Part Schematics Acquired . | . . . . . . Parts Damaged . | . . . . . . Bothacking | -11 -10 -10 -9 -9 -9 ------------ Run | Scr Mat Min Mat Min Exi Used RIF Installer . | . . . . . . Robots Hacked . | . . . . . . Non-combat . | . . . . . . Combat . | . . . . . . Robot Hacks Applied . | . . . . . . Relay Couplers Released . | . . . . . . Robots Rewired . | . . . . . . Allies Hacked . | . . . . . . Hacks Repelled . | . . . . . . Allies | -11 -10 -10 -9 -9 -9 -------- Run | Scr Mat Min Mat Min Exi Total Allies 1 | . . 1 . . . Largest Group 1 | . . 1 . . . Highest-Rated Group 31 | . . 31 . . . Highest-Rated Ally 31 | . . 31 . . . Total Orders 5 | . . 2 3 . . EXPLORE 5 | . . 2 3 . . Ally Attacks 18 | . . 4 14 . . Total Damage 40 | . . 40 . . . Kills . | . . . . . . Allies Corrupted . | . . . . . . Allies Melted . | . . . . . . Intel | -11 -10 -10 -9 -9 -9 ------- Run | Scr Mat Min Mat Min Exi Robot Analysis Total 4 | . 2 . 2 . . Derelict Logs Recovered 3 | . . 1 . 2 . Drone Launches 16 | . . 2 14 . . Drone Recoveries . | . . . . . . Exploration | -11 -10 -10 -9 -9 -9 ------------- Run | Scr Mat Min Mat Min Exi Turns Passed 3538 | 21 746 579 1196 624 372 Spaces Moved 3184 | 13 647 618 1007 592 307 Core . | . . . . . . Treads . | . . . . . . Legs . | . . . . . . Wheels 3184 | 13 647 618 1007 592 307 Hover . | . . . . . . Flight . | . . . . . . Fastest Speed 80 | 80 80 80 80 80 90 Average Speed 85 | 80 80 86 83 89 90 Slowest Speed 90 | 80 80 90 90 90 90 Overloaded Moves . | . . . . . . Propulsion Burnouts . | . . . . . . Robots Hopped . | . . . . . . Cave-ins Triggered . | . . . . . . Exploration Rate (%) 73 | 2 92 98 96 93 60 Regions Visited 5 Branch Regions 3 Pre-discovered Areas 4 | . 2 . 1 . 1 Known Exits Taken 2 | . . . 1 1 . Unknown Exits Taken 3 | 1 1 1 . . . Scrap Searched 2 | . . 1 . 1 . Spaces Dug . | . . . . . . Terrain Destroyed 67 | . 17 4 4 37 5 Melee . | . . . . . . Projectile 2 | . . . . . 2 AOE 65 | . 17 4 4 37 3 Terrain Rammed . | . . . . . . Walls Destroyed . | . . . . . . Machines Disabled . | . . . . . . Actions | -11 -10 -10 -9 -9 -9 --------- Run | Scr Mat Min Mat Min Exi Total 3708 | 19 786 650 1227 647 379 Wait 206 | . 38 21 95 15 37 Move 3179 | 12 646 617 1006 591 307 Hop . | . . . . . . Pick Up 13 | . 2 . 7 . 4 Fast Attach 23 | 4 5 1 8 4 1 Attach 3 | . . . 1 . 2 Detach 1 | . . . 1 . . Swap 5 | . 4 . . . 1 Drop 30 | 1 7 2 12 2 6 Fire 151 | 2 52 4 56 21 16 Melee . | . . . . . . Ram 5 | . 3 1 1 . . Kick . | . . . . . . Crush . | . . . . . . Escape Stasis . | . . . . . . Rewire . | . . . . . . Trap . | . . . . . . Miscellaneous 92 | . 29 4 40 14 5 Route ------- -11/Scrapyard -10/Materials (discovered 5 exits: *Mat x3 / *Min x2) -10/Mines (discovered 2 exits: *Mat x2) -9/Materials (discovered 5 exits: *Mat x3 / *Min x2) -9/Mines (discovered 3 exits: *Mat x2 / *Exi) -9/Exiles History --------- Turn | Location | Event 3 | -11/Scrapyard | Discovered new exit (range 1) 5 | -11/Scrapyard | Upgraded with Propulsion slot (x1) 5 | -11/Scrapyard | Upgraded with Utility slot (x1) 5 | -11/Scrapyard | Upgraded with Weapon slot (x2) 22 | -11/Scrapyard | Entered Materials 133 | -10/Materials | Discovered new exit (range 8) 260 | -10/Materials | Discovered new exit (range 7) 283 | -10/Materials | Reached level 2 286 | -10/Materials | Upgraded with Weapon slot (x1) 304 | -10/Materials | Discovered new exit (range 16) 541 | -10/Materials | Discovered new exit (range 11) 605 | -10/Materials | Build established: Scavenger-Skirmisher 611 | -10/Materials | Reached level 3 700 | -10/Materials | Discovered new exit (range 8) 768 | -10/Materials | Entered Mines 769 | -10/Mines | Assembled infested the area 771 | -10/Mines | Received a Mining Laser from a helpful Derelict 775 | -10/Mines | Assisted by a Guerilla fighting off Assembled 780 | -10/Mines | Discovered new exit (range 11) 793 | -10/Mines | Reached level 4 803 | -10/Mines | Discovered new exit (range 14) 937 | -10/Mines | Found the Drone Emporium 950 | -10/Mines | Found Prototype Device 950 | -10/Mines | Identified Bomb Drone Bay 1072 | -10/Mines | Learned Materials terminal intel 1237 | -10/Mines | Build established: Gunner 1347 | -10/Mines | Entered Materials 1348 | -9/Materials | Loaded intel: 12 terminal locations 1349 | -9/Materials | Reached level 5 1388 | -9/Materials | Discovered new exit (range 22) 1611 | -9/Materials | Discovered new exit (range 16) 1727 | -9/Materials | Reached level 6 1794 | -9/Materials | Discovered new exit (range 43) 1952 | -9/Materials | Reached level 7 1955 | -9/Materials | Upgraded with Utility slot (x1) 1980 | -9/Materials | Destroyed 8 combat bots 2097 | -9/Materials | Discovered new exit (range 16) 2211 | -9/Materials | Reached level 8 2223 | -9/Materials | Upgraded with Utility slot (x1) 2295 | -9/Materials | Identified exit to Materials 2369 | -9/Materials | Discovered new exit (range 7) 2380 | -9/Materials | Identified exit to Mines 2380 | -9/Materials | Central database locked down 2543 | -9/Materials | Entered Mines 2581 | -9/Mines | Met a Derelict shopkeep closing up shop 2587 | -9/Mines | Found Powered Armor 2718 | -9/Mines | Reached level 9 2721 | -9/Mines | Discovered exit to Materials (range 4) 2722 | -9/Mines | Upgraded with Utility slot (x1) 2873 | -9/Mines | Learned Materials garrison access intel 2877 | -9/Mines | Met a Derelict testing a Signal Generator 3034 | -9/Mines | Deemed a non-threat by the Exiles lab entrance 3035 | -9/Mines | Discovered new exit (range 5) 3057 | -9/Mines | Build established: Scavenger-Skirmisher 3070 | -9/Mines | Discovered exit to Materials (range 15) 3166 | -9/Mines | Identified exit to Exiles 3167 | -9/Mines | Entered Exiles 3190 | -9/Exiles | Met 8R-AWN 3205 | -9/Exiles | Met EX-HEX 3229 | -9/Exiles | Met EX-BIN 3240 | -9/Exiles | Aligned with FarCom system 3240 | -9/Exiles | Given EX-Vault access code 3262 | -9/Exiles | Opened EX-Vault 3271 | -9/Exiles | Found Trap Reconfigurator 3274 | -9/Exiles | Found AWS/Thermal 3294 | -9/Exiles | Warned to stay clear of 0b10 Research branches 3303 | -9/Exiles | Exiles lab attacked by MAIN.C 3333 | -9/Exiles | Learned location of Zion (-6) 3418 | -9/Exiles | Attacked by the Exiles 3488 | -9/Exiles | Core integrity fell below 50% 3534 | -9/Exiles | Core integrity fell below 20% 3535 | -9/Exiles | Destroyed 9 combat bots 3539 | -9/Exiles | Destroyed by P-60 Hacker with Shock Rifle Last Messages --------------- 03525_ Penetrated by HV Slug. 03525_ HV Slug penetrates Machine. 03525_ Penetrated by HV Slug. 03525_ HV Slug penetrates Machine. 03526_ Dropped Broken AWS/Thermal. 03527_ Penetrated by Slug. 03529_ Acquired Protomatter-31. 03529_ Penetrated by HV Slug. 03529_ HV Slug penetrates Machine. 03529_ Penetrated by HV Slug. 03529_ HV Slug penetrates Machine. 03530_ Penetrated by Slug. 03533_ Penetrated by HV Slug. 03533_ HV Slug penetrates Machine. 03533_ Penetrated by HV Slug. 03533_ Critical hit. 03533_ HV Slug penetrates Wall. 03536_ Penetrated by Slug. 03537_ Penetrated by HV Slug. 03538_ Penetrated by Slug. Map ----- +----------------------------------------------------+ | ???????????????????????????????"""" ## #????? | | ???????????????????????????#??#""X" #????? | | ??????????????????????????????#" #????? | | ??????????????????????????????#" ## #????? | | ??????????????????????????????#""""""?# #?#### | | ??????????????????????????????##"###??# #?#""" | | ??????????????????????????????????????# #?#""" | | ??????????????????????????????????????# #?#""" | | ?????????????????????????????????????## ###"" | | ???????????????????????????????? ????#" | | ?????????????????????????????????????#" | | ?????????????????????????????????????#" | | ?????????????????????????????????????#" | | ????????????????????????####??????#??#" | | ???????????????????????? """????????#" | | ????????????????????????" """#???????## | | ???????????????????????"" ?????????# | | ??????????????????????#"" ?????????#" "X" | | ??????? ??????????????#"" "#????????#" """ | | ??????? ?????????????? ""????#????#" """"" | | ?????? ##????????????" "?????????##" ###### | | ?????? #???????????# #????????##"" #????? | | ???????" #####????### ###?######"" #?#??? | | ??????#" """#####X# #"###""""""" ##???? | | ???????" """" " ##??? | | ????????# @ " " #### | | ?????????# = | | ?????????### *%!![ = | | ???????????### !=[ %[[%= | | ?????????????## = = !* | | ??????????????## [%* ! *=[ | | ???????????????##" [ = %[ g | | ????????????????#""" !%! """"" | | ???????????????## g *=######""" | | ???????????????#"" g hgp "##????#####%** | | ???????????????#"" g ""##?????????##"% | | ??????????????#""" h ""##??????????# ! | | ??????????????#"" ""#???????????##" | | ??????????????#" ############## | | ??????????????#""" "" "!#" | | ??????????????#"" =%!%*= | | ??????????????##"" %%*%[% | | ???????????????#"""" [ | | ???????????????## | | ????????????????#" =* "" | | ????????????????#"""" h ""##%=##""" | | ????????????????#"" ""####*!#####""" | | ?????????????????? """"##??#/%#??# ### | | ?????????????????""" """#??##!%###"#??# | | ??????????????????? ""##??#! = "!#???? | +----------------------------------------------------+ Best States ------------- Heat Dissipation 55 Energy Generation 34 Energy Capacity 160 Matter Stores 300 Matter Capacity 300 Sight Range 16 Robot Scan Range 22 Terrain Scan Range 16 Terrain Scan Density 60 Armor Coverage 400 Resistance: TH 10 Weapon Cycling 15 Evasion (%) 44 Particle Charging 15 Salvage Targeting 1 Offensive Hacking 5 Item Schematics ----------------- Particle Cannon | -9/Materials | Extracted Hrd. Light Armor Plating | -9/Materials | Extracted Assault Rifle | -9/Materials | Extracted Heat Sink | -9/Materials | Extracted Lgt. Assault Rifle | -9/Materials | Extracted Sensor Array | -9/Materials | Extracted Robot Schematics ------------------ None Fabricated ------------ Nothing Alien Tech Used ----------------- None Achievements -------------- None Challenges ------------ None RPGLIKE | -11 -10 -10 -9 -9 -9 --------- Run | Scr Mat Min Mat Min Exi Levels Raised 8 | . 2 1 4 1 . XP Earned 16148 | 3000 3850 1075 6264 1118 841 XP Spent 14885 | 2920 3075 1480 6010 1400 . Upgrades 40 | 9 7 3 20 1 . Propulsion Slot 1 | 1 . . . . . Utility Slot 4 | 1 . . 2 1 . Weapon Slot 3 | 2 1 . . . . Core Integrity 4 | . 1 . 3 . . Heat Dissipation 5 | 4 . 1 . . . Energy Generation 4 | 1 . 2 1 . . Inventory Capacity 2 | . 1 . 1 . . Sensor Range 11 | . . . 11 . . Ranged Accuracy 3 | . 3 . . . . Hack Attack % 1 | . 1 . . . . TH Resistance % 2 | . . . 2 . . Protomatter Created 1083 | . 269 . 558 195 61 Integrity Restored 1718 | . 559 93 690 259 117 Core 1423 | . 487 93 535 191 117 Parts 295 | . 72 . 155 68 . Protomatter Decayed 596 | . 20 41 287 121 127 Game ------ Seed PhasingMediumCarapace Manual? 0 Play Time 00:42:10 Cumulative 27.3 hours Start 2021.07.05 @ 06:59:42 End 2021.07.05 @ 07:37:59 Sessions 1 Manual Loads 0 Difficulty Rogue Special Mode Winter2019/RPGLIKE Game No. 38 Rogue 38 Adventurer 0 Explorer 0 Win Type - Total 0 Types 0/0/0/0/0/0/0/0/0 Lore% 43 Gallery% 50 Achievement% 52 Wizard Run 0 Options --------- ASCII 0 Keyboard 0 Movement Numpad Keybinds 0 Fullscreen 1 Font 18/SmallcapsGlow Map View 76x50 Tactical HUD 1 Map Filters NONE Filters NONE Steam 1 RUN: d185b959-cae6-43db-ac15-e4bbbb865721